Cogmind - Beta 15 @@@ ROGUE MODE // 2025.05.05 @ 20:58:50 Player: deadnoob Result: Destroyed by KY-W5W(j) with Overtuned Pulse Rifle Performance ------------- Evolutions (0) 0 Regions Visited (3) 600 Robots Destroyed (30) 150 Value Destroyed (1221) 1221 Prototype IDs (0) 0 Alien Tech Used (0) 0 Bonus (800) 800 TOTAL SCORE: 2771 Bonus ------- Registered with UFD 300 Met Optimus in HQ 500 Cogmind --------- Core Integrity 0/250 Matter 59/300 Energy 118/160 System Corruption 0% Temperature Warm (120) Movement Treading (142) Location -8/Scraptown Parts ------- > --- POWER (1) -------- Light Fission Core > --- PROPULSION (2) --- Advanced Treads Overtuned Treads > --- UTILITY (2) ------ Large Storage Unit > --- WEAPON (2) ------- Heavy Hammer > --- INVENTORY (15) --- Overtuned Treads Scrap Suit Rocket Booster Deep Structural Scanner Makeshift Hacking Suite Heavy Particle Cannon Phase Cannon Siege Cannon Replica CPS Tube (2) CPS Tube (2) Peak State ------------ > --- POWER ------------ Light Fission Core > --- PROPULSION ------- Light Treads Improved Treads > --- UTILITY ---------- Large Storage Unit Force Field > --- WEAPON ----------- Missile Launcher Heavy Hammer > --- INVENTORY -------- Advanced Treads Overtuned Treads Overtuned Treads Scrap Suit Rocket Booster Makeshift Hacking Suite Light EM Pulse Cannon Heavy Particle Cannon Phase Cannon Siege Cannon Replica CPS Tube CPS Tube [Rating: 24] Favorites ----------- Power Light Fission Core Engine Ion Engine Power Core Light Fission Core Propulsion Light Treads Treads Light Treads Leg Aluminum Leg Utility Seismic Detector Device Seismic Detector Storage Small Storage Unit Processor Jamming Amplifier Weapon Light Assault Rifle Energy Gun Small Laser Energy Cannon Heavy Particle Cannon Ballistic Gun Light Assault Rifle Launcher Missile Launcher Impact Weapon Heavy Hammer Build | -11 -10 -10 -8 ------- Run | Yrd Mat Sub Scr Slots Evolved . | . . . . Power . | . . . . Propulsion . | . . . . Utility . | . . . . Weapon . | . . . . Parts Attached 18 | 2 . . 16 Power 1 | . . . 1 Engine . | . . . . Core 1 | . . . 1 Reactor . | . . . . Propulsion 6 | . . . 6 Treads 6 | . . . 6 Leg . | . . . . Wheel . | . . . . Hover . | . . . . Flight . | . . . . Utility 7 | 1 . . 6 Device 5 | 1 . . 4 Storage 1 | . . . 1 Processor 1 | . . . 1 Hackware . | . . . . Protection . | . . . . Artifact . | . . . . Weapon 4 | 1 . . 3 Energy Gun . | . . . . Energy Cannon 1 | . . . 1 Ballistic Gun 1 | 1 . . . Ballistic Cannon . | . . . . Launcher 1 | . . . 1 Special Weapon . | . . . . Impact Weapon 1 | . . . 1 Slashing Weapon . | . . . . Piercing Weapon . | . . . . Special Melee Weapon . | . . . . Unidentified Prototypes . | . . . . Parts Lost 5 | . . . 5 Power . | . . . . Propulsion 2 | . . . 2 Utility 2 | . . . 2 Weapon 1 | . . . 1 Highest Loss Streak 4 | . . . 4 To Critical Strikes . | . . . . Average Backups 9 | 4 4 4 9 Power . | 1 1 1 . Propulsion 2 | 2 2 2 2 Utility 1 | . . . 1 Weapon 4 | 1 1 1 4 Tool/Special . | . . . . Unused Backups 22 | 7 . . 15 Power 2 | 1 . . 1 Propulsion 5 | 4 . . 1 Utility 5 | 1 . . 4 Weapon 8 | 1 . . 7 Tool/Special 2 | . . . 2 Average Slot Usage (%) 99 | . 100 100 99 Engine 5 | . 14 14 4 Core 8 | . . . 9 Treads 21 | . . . 23 Leg 6 | . 28 28 4 Device 13 | . 14 14 13 Storage 14 | . 14 14 14 Energy Gun 3 | . 14 14 2 Energy Cannon 7 | . . . 8 Ballistic Gun 12 | . 14 14 12 Launcher 1 | . . . 1 Impact Weapon 2 | . . . 3 Peak Build Rating 24 | 7 7 7 24 Average Rating 15 | 6 7 7 16 On Entrance 6 | 6 7 7 7 Naked Turns . | . . . . Heaviest Build 43 | 13 13 13 43 Greatest Support 45 | 20 20 20 45 Greatest Overweight (x) 1 | . . . 1 Average Overweight (x) . | . . . . Largest Inventory Capacity 15 | 8 8 8 15 Average Capacity 11 | 8 8 8 11 Most Carried 15 | 6 4 5 15 Average Carried 9 | 4 4 4 10 Final Capacity 15 | 8 8 8 15 Final Carried 13 | 4 4 5 13 Class Distribution -------------------- 100% | Mutant Dominant Class ---------------- Mutant | -10/Materials Mutant | -10/Subcaves Mutant | -8/Scraptown Resources | -11 -10 -10 -8 ----------- Run | Yrd Mat Sub Scr Matter Collected 851 | 227 . . 624 Remotely . | . . . . Salvage Created 1175 | 115 . . 1060 Parts 51 | 5 . . 46 Haulers Intercepted . | . . . . Recyclers Shooed . | . . . . Parts Field Recycled . | . . . . Retrieved Matter . | . . . . Parts Self-Destructed 5 | . . 3 2 Prevented . | . . . . Kills | -11 -10 -10 -8 ------- Run | Yrd Mat Sub Scr Combat Hostiles Destroyed 28 | . . . 28 AOE 28 | . . . 28 Classes Destroyed 8 | 2 . . 6 Tunneler 1 | 1 . . . Recycler 1 | 1 . . . Federalist 8 | . . . 8 Explorer 1 | . . . 1 Ranger 2 | . . . 2 Guru 1 | . . . 1 Scrapper 14 | . . . 14 Savage 2 | . . . 2 Best Kill Streak 14 | 2 . . 14 Combat Bots Only 14 | . . . 14 Max Kills in Single Turn 3 | 1 . . 3 Gunslinging . | . . . . Exploded 3 | . . . 3 Melee . | . . . . Uniques/NPCs Destroyed . | . . . . Combat | -11 -10 -10 -8 -------- Run | Yrd Mat Sub Scr Hostile Shots Fired 97 | . . . 97 Missed 27 | . . . 27 Hits 70 | . . . 70 Projectile 70 | . . . 70 Critical Strikes 8 | . . . 8 Damage Taken 912 | . . . 912 Core 250 | . . . 250 Absorbed by Shields 308 | . . . 308 Core Remaining (%) 100 | 100 . . . Volleys Fired 57 | 7 . . 50 Largest 2 | 2 . . 1 Hottest 60 | 60 . . 36 Shots Fired 64 | 14 . . 50 Gun 14 | 14 . . . Cannon . | . . . . Launcher 50 | . . . 50 Special . | . . . . Kinetic 7 | 7 . . . Thermal 7 | 7 . . . Explosive 50 | . . . 50 Electromagnetic . | . . . . Robot Hit Streak 9 | 4 . . 9 Robot Miss Streak 4 | 4 . . 3 Penetration Max . | . . . . Secondary Targets . | . . . . Shots Hit Robots 38 | 6 . . 32 Core Hits 65 | 4 . . 61 Critical Kills . | . . . . Critical Parts Destroyed . | . . . . Critical Strikes . | . . . . Melee Attacks 3 | . . . 3 Impact 3 | . . . 3 Slashing . | . . . . Piercing . | . . . . Sneak Attacks . | . . . . Combat Hostiles . | . . . . Follow-up Attacks . | . . . . Damage Inflicted 3416 | 46 . . 3370 Guns 46 | 46 . . . Cannons . | . . . . Explosions 3370 | . . . 3370 Melee . | . . . . Ramming . | . . . . Kinetic 24 | 24 . . . Thermal 22 | 22 . . . Explosive 3370 | . . . 3370 Electromagnetic . | . . . . Impact . | . . . . Slashing . | . . . . Piercing . | . . . . Highest Corruption . | . . . . Average Corruption . | . . . . Corruption Purged . | . . . . Corruption Blocked . | . . . . Overload Shots . | . . . . Overflow Damage 203 | . . . 203 Projectiles . | . . . . Explosions 203 | . . . 203 Melee . | . . . . Knockbacks . | . . . . Impact . | . . . . Kinetic . | . . . . Secondary . | . . . . Self-Inflicted Damage 42 | . . . 42 Shots 1 | . . . 1 Rammed . | . . . . Targets Rammed . | . . . . Kicked . | . . . . Crushed . | . . . . Highest Temperature 104 | 40 . . 104 Average Temperature 24 | 17 . . 24 Received Heat Transfer 624 | . . . 624 Siege Activations . | . . . . Martial Activations . | . . . . Shielding Activations . | . . . . Robots Disrupted . | . . . . Combat Hostiles . | . . . . Robots Corrupted . | . . . . Combat Hostiles . | . . . . Parts Fried . | . . . . Impact Corruptions . | . . . . Robots Melted . | . . . . Combat Hostiles . | . . . . Parts Melted . | . . . . Heat Transferred 50 | 50 . . . Parts Sabotaged . | . . . . Parts Stolen . | . . . . Parts Stripped . | . . . . Power Chain Reactions . | . . . . Alert | -11 -10 -10 -8 ------- Run | Yrd Mat Sub Scr Maximum Alert Level . | . . . . Low Security (%) 100 | 100 100 . . Level 1 . | . . . . Level 2 . | . . . . Level 3 . | . . . . Level 4 . | . . . . Level 5 . | . . . . High Security . | . . . . Max Security . | . . . . Peak Influence 5 | 5 3 . . Initial 3 | . 3 . . Average 1 | 1 . . . Influence Increases 10 | 10 . . . Destroy 0b10 Robot/NC 10 | 10 . . . Influence Decreases 10 | 5 5 . . Entered New Map 2 | . 2 . . Time Decay 8 | 5 3 . . Squads Dispatched . | . . . . Investigation . | . . . . Extermination . | . . . . Reinforcement . | . . . . Assault . | . . . . Garrison . | . . . . Intercept . | . . . . Searches Triggered . | . . . . Construction Impeded . | . . . . Haulers Reinforced . | . . . . Active Scanning Responses . | . . . . Cargo Convoy Interrupts . | . . . . Stealth | -11 -10 -10 -8 --------- Run | Yrd Mat Sub Scr Distress Signals . | . . . . Communications Jammed . | . . . . Distress Signals . | . . . . Times Spotted 34 | . . . 34 Peak Tracking Total 7 | . . . 7 Tactical Retreats . | . . . . Traps | -11 -10 -10 -8 ------- Run | Yrd Mat Sub Scr Traps Triggered . | . . . . Indirectly . | . . . . Trap Hack Attempts . | . . . . Triggered . | . . . . Disarmed . | . . . . Reprogrammed . | . . . . Reused . | . . . . Traps Extracted . | . . . . Installed . | . . . . Triggered . | . . . . Machines | -11 -10 -10 -8 ---------- Run | Yrd Mat Sub Scr Machines Disabled 6 | . . . 6 Max in Single Turn 2 | . . . 2 Machines Repaired . | . . . . Machines Dismantled . | . . . . Machines Sabotaged . | . . . . Overloaded Fab Kills . | . . . . Hacking | -11 -10 -10 -8 --------- Run | Yrd Mat Sub Scr Machines Accessed 4 | . . . 4 Terminals . | . . . . Fabricators . | . . . . Repair Stations . | . . . . Recycling Units . | . . . . Scanalyzers . | . . . . Garrison Access . | . . . . Total Hacks 43 | . . . 43 Successful 43 | . . . 43 Failed . | . . . . Catastrophic . | . . . . Database Lockouts . | . . . . Manual . | . . . . Terminals . | . . . . Fabricators . | . . . . Repair Stations . | . . . . Recycling Units . | . . . . Scanalyzers . | . . . . Garrison Access . | . . . . Terminal Hacks 43 | . . . 43 Record 37 | . . . 37 Robot Analysis 6 | . . . 6 Fabricator Hacks . | . . . . Repair Station Hacks . | . . . . Recycling Unit Hacks . | . . . . Scanalyzer . | . . . . Garrison Access Hacks . | . . . . Unauthorized Hacks . | . . . . Terminals . | . . . . Fabricators . | . . . . Repair Stations . | . . . . Recycling Units . | . . . . Scanalyzers . | . . . . Garrison Access . | . . . . Data Cores Recovered . | . . . . Used . | . . . . Hacking Detections . | . . . . Full Trace Events . | . . . . Feedback Events . | . . . . Feedback Blocked . | . . . . Robot Schematics Acquired . | . . . . Robots Built . | . . . . Authchips . | . . . . Time . | . . . . Total Robot Build Rating . | . . . . Part Schematics Acquired . | . . . . Parts Built . | . . . . Authchips . | . . . . Time . | . . . . Total Part Build Rating . | . . . . Parts Repaired . | . . . . Time . | . . . . Parts Recycled . | . . . . Recycled Matter . | . . . . Retrieved Matter . | . . . . Retrieved Components . | . . . . Parts Scanalyzed . | . . . . Part Schematics Acquired . | . . . . Parts Damaged . | . . . . Bothacking | -11 -10 -10 -8 ------------ Run | Yrd Mat Sub Scr Used RIF Installer . | . . . . Robots Hacked . | . . . . Non-combat . | . . . . Combat . | . . . . Robot Hacks Applied . | . . . . Relay Couplers Released . | . . . . Fabnet Peak Effective % . | . . . . Robots Rewired . | . . . . Allies Hacked . | . . . . Hacks Repelled . | . . . . Allies | -11 -10 -10 -8 -------- Run | Yrd Mat Sub Scr Total Allies . | . . . . Largest Group . | . . . . Highest-Rated Group . | . . . . Highest-Rated Ally . | . . . . Total Orders . | . . . . Ally Attacks . | . . . . Total Damage . | . . . . Kills . | . . . . Allies Corrupted . | . . . . Allies Melted 2 | . . . 2 Intel | -11 -10 -10 -8 ------- Run | Yrd Mat Sub Scr Active Infowar (turns) 3066 | 15 63 289 2699 Structural 32 | . . . 32 Seismic 3034 | 15 63 289 2667 Robot Analysis Total 6 | . . . 6 Derelict Logs Recovered . | . . . . Drone Launches . | . . . . Drone Recoveries . | . . . . Exploration | -11 -10 -10 -8 ------------- Run | Yrd Mat Sub Scr Turns Passed 3458 | 56 63 289 3050 Spaces Moved 2017 | 27 51 167 1772 Core . | . . . . Treads 1403 | . . . 1403 Legs 614 | 27 51 167 369 Wheels . | . . . . Hover . | . . . . Flight . | . . . . Fastest Speed 120 | 120 120 120 120 Average Speed 143 | 120 120 120 147 Slowest Speed 240 | 120 120 120 240 Overloaded Moves . | . . . . Propulsion Burnouts . | . . . . Robots Hopped . | . . . . Potential Cave-ins . | . . . . Cave-ins Triggered . | . . . . Exploration Rate (%) 32 | 4 16 19 92 Regions Visited 3 Branch Regions 2 Pre-discovered Areas 6 | . . . 6 Known Exits Taken . | . . . . Unknown Exits Taken 3 | 1 1 1 . Scrap Searched 7 | . . . 7 Spaces Dug 1 | . . . 1 Terrain Destroyed 204 | . . . 204 Melee 1 | . . . 1 Projectile . | . . . . AOE 203 | . . . 203 Terrain Rammed . | . . . . Walls Destroyed . | . . . . Machines Disabled . | . . . . Actions | -11 -10 -10 -8 --------- Run | Yrd Mat Sub Scr Total 2500 | 39 53 255 2153 Wait 350 | . 3 88 259 Move 2014 | 26 50 166 1772 Hop . | . . . . Pick Up 22 | 1 . 1 20 Fast Attach 10 | 1 . . 9 Attach 7 | 1 . . 6 Detach 4 | . . . 4 Swap 9 | . . . 9 Drop 24 | 3 . . 21 Fire 57 | 7 . . 50 Melee 3 | . . . 3 Ram . | . . . . Kick . | . . . . Crush . | . . . . Escape Stasis . | . . . . Rewire . | . . . . Trap . | . . . . Miscellaneous . | . . . . Route ------- -11/Scrapyard -10/Materials -10/Subcaves (discovered 2 exits: [*Mat] / *Scr) -8/Scraptown (discovered 2 exits: [*Fac x2]) History --------- Turn | Location | Event 8 | -11/Scrapyard | Discovered new exit (range 3) 57 | -11/Scrapyard | Entered Materials 58 | -10/Materials | Met a group of wandering Federalists 116 | -10/Materials | Discovered new exit (range 5) 120 | -10/Materials | Entered Subcaves 120 | -10/Subcaves | Accompanied by 5 allies 121 | -10/Subcaves | Continued accompanying wandering Federalists (6) 210 | -10/Subcaves | Discovered new exit (range 6) 310 | -10/Subcaves | Build established: Mutant 330 | -10/Subcaves | Shifting Twisted Machinery released Flamer 335 | -10/Subcaves | Shifting Twisted Machinery released Riot Gun 357 | -10/Subcaves | Wandering Federalist uncovered a shortcut to Scraptown 409 | -10/Subcaves | Entered Scraptown 504 | -8/Scraptown | Heard Great Nut preacher, LISTEN AND RECITE! 577 | -8/Scraptown | Learned location of Extension (-5) 606 | -8/Scraptown | Visited Spacefarers 616 | -8/Scraptown | Visited Awakened 1018 | -8/Scraptown | Discovered new exit (range 3) 1176 | -8/Scraptown | Visited Fellowship of the Rings 1551 | -8/Scraptown | Visited Assassins FH 1589 | -8/Scraptown | Visited Cave Peace 1638 | -8/Scraptown | Visited TADAMA 1680 | -8/Scraptown | Visited IN-MT5's Study 1717 | -8/Scraptown | Visited UFD Registry 1717 | -8/Scraptown | Registered with UFD as "Rustbomber" 1761 | -8/Scraptown | Visited Curators Association 1814 | -8/Scraptown | Visited Chapter 10 2049 | -8/Scraptown | Visited DA-N13 Charitable Foundation 2063 | -8/Scraptown | Found DCF Scrap (31 items) 2107 | -8/Scraptown | Visited Research Penetration Think Tank 2139 | -8/Scraptown | Visited Scrap Suit Storage 2163 | -8/Scraptown | Found Scrap Suit 2189 | -8/Scraptown | Visited Abandonware Association 2206 | -8/Scraptown | Learned abandonware demo "REVENGE.EXE" 2206 | -8/Scraptown | Learned abandonware demo "MELTYB.EXE" 2244 | -8/Scraptown | Visited Derelict Rescue Squad 2254 | -8/Scraptown | Found DRS Beacon 2288 | -8/Scraptown | Visited Analyses Database 2325 | -8/Scraptown | Visited Cartography Club 2635 | -8/Scraptown | Met Optimus 2635 | -8/Scraptown | Accepted into 0bPrime 3035 | -8/Scraptown | Civil war broke out across Scraptown 3064 | -8/Scraptown | Found Siege Cannon Replica 3104 | -8/Scraptown | Lost 3 allies 3196 | -8/Scraptown | Destroyed 11 combat bots 3207 | -8/Scraptown | Lost 4 allies 3280 | -8/Scraptown | Found Deep Structural Scanner 3290 | -8/Scraptown | Learned location of Zion (-6) 3290 | -8/Scraptown | Learned 8 Factory zone layouts 3290 | -8/Scraptown | Learned 8 Lower Caves zone layouts 3290 | -8/Scraptown | Learned 20 Lower Caves zone layouts 3290 | -8/Scraptown | Learned 4 Armory zone layouts 3290 | -8/Scraptown | Learned 16 Proximity Caves zone layouts 3290 | -8/Scraptown | Learned location of 2 exits from Lower Caves 3290 | -8/Scraptown | Learned location of 1 exit from Proximity Caves 3290 | -8/Scraptown | Learned location of 3 exits from Proximity Caves 3435 | -8/Scraptown | Discovered new exit (range 15) 3448 | -8/Scraptown | Core integrity fell below 50% 3450 | -8/Scraptown | Destroyed 14 combat bots 3458 | -8/Scraptown | Core integrity fell below 20% 3459 | -8/Scraptown | Destroyed by KY-W5W(j) with Overtuned Pulse Rifle Last Messages --------------- 03435_ EXIT=FOUND 03436_ The unstable cave ceiling collapses. 03436_ 57 Matter crushed. 03436_ The unstable cave ceiling collapses. 03439_ Corrupted Scrap Suit crushed. 03441_ The unstable cave ceiling collapses. 03441_ Corrupted Ovr. Treads crushed. 03445_ KY-W5W(j): "0bPrime is tearing us apart, don't fall for it!" 03445_ Missile Launcher destroyed. 03448_ The unstable cave ceiling collapses. 03448_ AG-INJ(j) suffers critical hit (Burn). 03449_ The unstable cave ceiling collapses. 03449_ NS-FZF(j) suffers critical hit (Burn). 03451_ Force Field destroyed. 03451_ Critical hit (Burn: +23). 03451_ AG-INJ(j) suffers critical hit (Burn). 03451_ AG-INJ(j) destroyed. 03452_ Lgt. Treads destroyed. 03456_ Imp. Treads destroyed. 03457_ Critical hit (Burn: +50). Map ----- +----------------------------------------------------+ | | | | | | | | | | | | | | | | | | | | | ?????????????????????????????????????????????????? | | ?????????????????????????????????????????????????? | | ?????????????????????????????????????????????????? | | ?????????????????????????????????????????????????? | | ?????????????????????????????????????????????????? | | ?????????????????????????????????????????????????? | | ?????????????????????????????????????????????????? | | ?????????????????????????????????????????????????? | | ?????????????????????????????????????????????????? | | ?????????????????????#######?????????????????????? | | ???????????????####### #?????????????????????? | | ???????????????# # ####??????????????????? | | ??????????????## #!""!#??????????????????? | | ?????????????## # =[%!##?????????????????? | | ?????????#""?# ! !%<[%##????????????????? | | ???????|##!!"# [ j @[%**=!#????????????????? | | ??????=%!== =%! j%!%%!%*[##????????????????? | | ???????[%[ = ! %! gj !%[%#?????????????????? | | ???????????## #= ##?????????????????? | | ????????????# = ! # #??????????????????? | | ??????######## # ##??????????????????? | | ??????#"""""""" ! ######???????????????????? | | ??????#" &&" "# ########??????????????????? | | ??????#" "# = """""""#??????????????????? | | ??????#"" ""# ! " " " #??????????????????? | | #######" "## == != #??????????????????? | | """"""#"" ! ""### !#*%"# #" #??????????????????? | | " X "#" "### #[="#X#" #??????????????????? | | "#"" ""###[! " ##" ####???????????????? | | " ""# ###%*= "" ####???????????????? | | # ###!=! ####???????????????? | | ##!% ####???????????????? | | ####### # # ## = #######???????????????? | | # = = [*!%## #######???????????????? | | % !![ !*[ ############????????????? | | * % % = * == # #"""""#""#????????????? | | = [ ! = !!!! !#????????????? | | = !%*!% ! ! #????????????? | | = !! =%! ! ]! #????????????? | | ! !% %/ %[[[!% X" #????????????? | +----------------------------------------------------+ Best States ------------- Heat Dissipation 25 Energy Generation 18 Energy Capacity 250 Matter Stores 300 Matter Capacity 300 Sight Range 16 Terrain Scan Density 10 Resistance: EM 25 Evasion (%) 55 Recoil Reduction 2 Item Schematics ----------------- None Robot Schematics ------------------ None Fabricated ------------ Nothing Repaired ---------- Nothing Alien Tech Used ----------------- None Achievements -------------- None Challenges ------------ None Game ------ Seed BurstCloakingWartreads Manual? 0 Play Time 00:31:54 Cumulative 352.3 hours Start 2025.05.05 @ 20:26:35 End 2025.05.05 @ 20:58:50 Sessions 3 Manual Loads 0 Difficulty Rogue Special Mode None Game No. 405 Rogue 405 Adventurer 0 Explorer 0 Win Type - Total 11 Types 8/0/2/1/0/0/0/0/0/0 Lore% 76 Gallery% 79 Achievement% 76 Wizard Run 0 Options --------- Layout 0 ASCII 0 Keyboard 0 Movement Numpad Keybinds 0 Fullscreen 2 Font 18/X11 Map View 76x50 Zoom Use 0% Tactical HUD 1 Map Filters NONE Filters NONE Steam 1 RUN: b1bf78b9-d7ac-45be-aee9-4e75bda745d3